Cogmind - Beta 16.1 @@@ ROGUE MODE // 2026.04.27 @ 00:56:39 Player: H3-MLN Result: Destroyed by OS-JN0(R) with Subdweller Shrapnel Launcher Performance ------------- Evolutions (0) 0 Regions Visited (3) 600 Robots Destroyed (26) 130 Value Destroyed (828) 828 Prototype IDs (0) 0 Alien Tech Used (0) 0 Bonus (90) 90 TOTAL SCORE: 1648 Bonus ------- Follower Combat Kills 90 Cogmind --------- Core Integrity 0/250 Matter 233/300 Energy 200/200 System Corruption 0% Temperature Cool (0) Movement Treading (320) Ox2 Location -10/Subcaves Parts ------- > --- POWER (1) -------- Subdweller Power Source > --- PROPULSION (2) --- Light Treads Armored Wheel > --- UTILITY (2) ------ High-capacity Storage Unit Makeshift Light Armor Plating > --- WEAPON (2) ------- Battle Rifle > --- INVENTORY (20) --- Armored Wheel Armored Wheel Armored Wheel Humpback Large Matter Pod (150) Structural Scanner Seismic Detector Decoy Drone Bay Subdweller Laser Assault Rifle Assault Rifle Assault Rifle Assault Rifle Battle Rifle Grenade Launcher Datajack Makeshift Hammer Peak State ------------ > --- POWER ------------ Subdweller Power Source > --- PROPULSION ------- Armored Wheel > --- UTILITY ---------- High-capacity Storage Unit Makeshift Light Armor Plating > --- WEAPON ----------- Battle Rifle Battle Cannon > --- INVENTORY -------- Light Treads Armored Wheel Armored Wheel Armored Wheel Humpback Large Matter Pod Structural Scanner Seismic Detector Decoy Drone Bay Subdweller Laser Assault Rifle Assault Rifle Assault Rifle Assault Rifle Battle Rifle Grenade Launcher Datajack Makeshift Hammer [Rating: 17] Favorites ----------- Power Improved Ion Engine Engine Improved Ion Engine Propulsion Light Treads Treads Light Treads Wheel Armored Wheel Utility High-capacity Storage Unit Device Seismic Detector Storage High-capacity Storage Unit Protection Makeshift Light Armor Plating Weapon Assault Rifle Ballistic Gun Assault Rifle Ballistic Cannon Battle Cannon Launcher Grenade Launcher Build | -11 -10 -10 -10 ------- Run | Yrd Mat Min Sub Slots Evolved . | . . . . Power . | . . . . Propulsion . | . . . . Utility . | . . . . Weapon . | . . . . Parts Attached 27 | 7 8 . 12 Power 4 | 1 1 . 2 Engine 4 | 1 1 . 2 Core . | . . . . Reactor . | . . . . Propulsion 6 | 2 3 . 1 Treads 2 | . 1 . 1 Leg . | . . . . Wheel 4 | 2 2 . . Hover . | . . . . Flight . | . . . . Utility 7 | 2 2 . 3 Device 2 | 1 . . 1 Storage 3 | 1 2 . . Processor . | . . . . Hackware . | . . . . Protection 2 | . . . 2 Artifact . | . . . . Weapon 10 | 2 2 . 6 Energy Gun . | . . . . Energy Cannon . | . . . . Ballistic Gun 4 | 2 1 . 1 Ballistic Cannon 5 | . 1 . 4 Launcher 1 | . . . 1 Special Weapon . | . . . . Impact Weapon . | . . . . Slashing Weapon . | . . . . Piercing Weapon . | . . . . Special Melee Weapon . | . . . . Unidentified Prototypes . | . . . . Parts Lost 6 | . . . 6 Power 1 | . . . 1 Propulsion 1 | . . . 1 Utility 1 | . . . 1 Weapon 3 | . . . 3 Highest Loss Streak 2 | . . . 2 To Critical Strikes . | . . . . Average Backups 16 | 2 11 19 17 Power . | . 1 2 . Propulsion 3 | 1 2 4 4 Utility 4 | . 1 4 4 Weapon 7 | . 6 7 7 Tool/Special . | . . . . Unused Backups 23 | . 4 2 17 Power 2 | . 1 . 1 Propulsion 6 | . 1 1 4 Utility 4 | . . . 4 Weapon 10 | . 2 1 7 Tool/Special 1 | . . . 1 Average Slot Usage (%) 99 | . 100 100 99 Engine 14 | . 14 14 14 Treads 13 | . 9 14 13 Wheel 14 | . 18 14 14 Device 11 | . 14 14 9 Storage 14 | . 14 14 14 Protection 2 | . . . 3 Ballistic Gun 13 | . 25 28 8 Ballistic Cannon 14 | . 2 . 19 Peak Build Rating 17 | 7 11 13 17 Average Rating 12 | 4 8 12 14 On Entrance 7 | . 7 11 12 Avg Prop Armor Cover (%) 9 | . 8 11 9 Naked Turns . | . . . . Heaviest Build 56 | 14 52 52 56 Greatest Support 32 | 32 32 12 12 Greatest Overweight (x) 5 | . 5 4 4 Average Overweight (x) 3 | . 1 4 4 Largest Inventory Capacity 20 | 8 20 20 20 Average Capacity 18 | 7 12 20 20 Most Carried 20 | 4 20 20 20 Average Carried 18 | 2 11 19 19 Final Capacity 20 | 8 20 20 20 Final Carried 20 | 4 20 20 19 Class Distribution -------------------- 100% | Mutant Dominant Class ---------------- Mutant | -10/Materials Mutant | -10/Mines Mutant | -10/Subcaves Resources | -11 -10 -10 -10 ----------- Run | Yrd Mat Min Sub Matter Collected 1441 | 293 479 . 669 Remotely . | . . . . Salvage Created 753 | 71 509 . 173 Parts 37 | 3 27 . 7 Haulers Intercepted 1 | . 1 . . Recyclers Shooed 1 | . 1 . . Parts Field Recycled . | . . . . Retrieved Matter . | . . . . Parts Self-Destructed 12 | . . . 12 Prevented . | . . . . Parts Restored . | . . . . Kills | -11 -10 -10 -10 ------- Run | Yrd Mat Min Sub Combat Hostiles Destroyed 19 | . 9 . 10 Guns 9 | . 6 . 3 Cannons 9 | . 3 . 6 AOE 1 | . . . 1 Classes Destroyed 7 | 2 3 . 2 Tunneler 1 | 1 . . . Hauler 1 | . 1 . . Recycler 3 | 1 2 . . Operator 1 | . 1 . . Turret 1 | . . . 1 Grunt 9 | . 9 . . Subdweller 10 | . . . 10 Best Kill Streak 3 | 1 3 . 2 Combat Bots Only 3 | . 3 . 2 Max Kills in Single Turn 1 | 1 1 . 1 Gunslinging . | . . . . Exploded 1 | . . . 1 Melee . | . . . . Uniques/NPCs Destroyed . | . . . . Combat | -11 -10 -10 -10 -------- Run | Yrd Mat Min Sub Hostile Shots Fired 106 | . 44 . 62 Missed 38 | . 16 . 22 Hits 68 | . 28 . 40 Projectile 68 | . 28 . 40 AOE 6 | . . . 6 Damage Taken 1340 | . 356 . 984 Core 260 | . 65 . 195 Absorbed by Shields . | . . . . Core Remaining (%) 100 | 100 . . . Volleys Fired 122 | 6 37 . 79 Largest 2 | 2 2 . 2 Hottest 66 | 40 53 . 66 Shots Fired 223 | 12 73 . 138 Gun 86 | 12 54 . 20 Cannon 132 | . 19 . 113 Launcher 5 | . . . 5 Special . | . . . . Kinetic 218 | 12 73 . 133 Thermal . | . . . . Explosive 5 | . . . 5 Electromagnetic . | . . . . Robot Hit Streak 15 | 3 5 . 15 Robot Miss Streak 3 | 2 3 . 2 Penetration Max . | . . . . Secondary Targets . | . . . . Shots Hit Robots 115 | 7 39 . 69 Core Hits 49 | 5 21 . 23 Critical Kills . | . . . . Critical Parts Destroyed . | . . . . Critical Strikes 4 | . . . 4 Blast 4 | . . . 4 Melee Attacks . | . . . . Impact . | . . . . Slashing . | . . . . Piercing . | . . . . Sneak Attacks . | . . . . Combat Hostiles . | . . . . Follow-up Attacks . | . . . . Damage Inflicted 2144 | 81 603 . 1460 Guns 669 | 81 342 . 246 Cannons 1343 | . 261 . 1082 Explosions 132 | . . . 132 Melee . | . . . . Ramming . | . . . . Kinetic 2012 | 81 603 . 1328 Thermal . | . . . . Explosive 132 | . . . 132 Electromagnetic . | . . . . Impact . | . . . . Slashing . | . . . . Piercing . | . . . . Highest Corruption . | . . . . Average Corruption . | . . . . Corruption Purged . | . . . . Corruption Blocked . | . . . . Overload Shots . | . . . . Overflow Damage . | . . . . Projectiles . | . . . . Explosions . | . . . . Melee . | . . . . Knockbacks 12 | . 3 . 9 Impact . | . . . . Kinetic 12 | . 3 . 9 Secondary . | . . . . Self-Inflicted Damage . | . . . . Shots . | . . . . Rammed . | . . . . Targets Rammed . | . . . . Kicked . | . . . . Crushed . | . . . . Highest Temperature 24 | . 24 . . Average Temperature 8 | . 8 . . Received Heat Transfer 330 | . 204 . 126 Siege Activations . | . . . . Martial Activations . | . . . . Shielding Activations . | . . . . Robots Disrupted . | . . . . Combat Hostiles . | . . . . Robots Corrupted . | . . . . Combat Hostiles . | . . . . Parts Fried . | . . . . Impact Corruptions . | . . . . Robots Melted . | . . . . Combat Hostiles . | . . . . Parts Melted . | . . . . Heat Transferred . | . . . . Parts Sabotaged . | . . . . Parts Stolen . | . . . . Parts Stripped . | . . . . Power Chain Reactions . | . . . . Alert | -11 -10 -10 -10 ------- Run | Yrd Mat Min Sub Maximum Alert Level . | . . . . Low Security (%) 100 | 100 100 100 . Level 1 . | . . . . Level 2 . | . . . . Level 3 . | . . . . Level 4 . | . . . . Level 5 . | . . . . High Security . | . . . . Max Security . | . . . . Peak Influence 162 | 5 162 30 . Initial 30 | . . 30 . Average 31 | . 63 1 . Influence Increases 330 | 10 284 . 36 Destroy 0b10 Robot/C 200 | . 180 . 20 Destroy 0b10 Robot/NC 30 | 10 20 . . Destroy Leader 52 | . 52 . . Allied During Kill 1 | . . . 1 Disable Machine 15 | . 15 . . Destroy Structure 2 | . 2 . . Lose Combat Pursuer 30 | . 15 . 15 Influence Decreases 330 | 10 205 79 36 Entered New Map 49 | . . 49 . Time Decay 266 | 10 205 30 21 Lost Ally 15 | . . . 15 Squads Dispatched 2 | . 2 . . Investigation . | . . . . Extermination . | . . . . Reinforcement 2 | . 2 . . Assault . | . . . . Garrison . | . . . . Intercept . | . . . . Searches Triggered . | . . . . Construction Impeded . | . . . . Haulers Reinforced . | . . . . Active Scanning Responses . | . . . . Cargo Convoy Interrupts . | . . . . Stealth | -11 -10 -10 -10 --------- Run | Yrd Mat Min Sub Distress Signals 3 | . 3 . . Communications Jammed . | . . . . Distress Signals . | . . . . Times Spotted 35 | . 17 . 18 Peak Tracking Total 5 | . 5 . 3 Tactical Retreats 3 | . 1 . 2 Traps | -11 -10 -10 -10 ------- Run | Yrd Mat Min Sub Traps Triggered . | . . . . Indirectly . | . . . . Trap Hack Attempts . | . . . . Triggered . | . . . . Disarmed . | . . . . Reprogrammed . | . . . . Reused . | . . . . Traps Extracted . | . . . . Installed . | . . . . Triggered . | . . . . Machines | -11 -10 -10 -10 ---------- Run | Yrd Mat Min Sub Machines Disabled 2 | . 1 . 1 Max in Single Turn 1 | . 1 . 1 Machines Repaired . | . . . . Machines Dismantled . | . . . . Machines Sabotaged . | . . . . Overloaded Fab Kills . | . . . . Hacking | -11 -10 -10 -10 --------- Run | Yrd Mat Min Sub Machines Accessed 7 | . 3 1 3 Terminals 3 | . 3 . . Fabricators . | . . . . Repair Stations . | . . . . Recycling Units . | . . . . Scanalyzers . | . . . . Garrison Access . | . . . . Total Hacks 11 | . 5 1 5 Successful 7 | . 1 1 5 Failed 4 | . 4 . . Catastrophic 2 | . 2 . . Database Lockouts . | . . . . Manual 3 | . 3 . . Terminals 5 | . 5 . . Fabricators . | . . . . Repair Stations . | . . . . Recycling Units . | . . . . Scanalyzers . | . . . . Garrison Access . | . . . . Terminal Hacks 7 | . 1 1 5 Record 3 | . . . 3 Open Door 2 | . . 1 1 Locate Traps 1 | . 1 . . Release Object 1 | . . . 1 Fabricator Hacks . | . . . . Repair Station Hacks . | . . . . Recycling Unit Hacks . | . . . . Scanalyzer . | . . . . Garrison Access Hacks . | . . . . Unauthorized Hacks . | . . . . Terminals . | . . . . Fabricators . | . . . . Repair Stations . | . . . . Recycling Units . | . . . . Scanalyzers . | . . . . Garrison Access . | . . . . Data Cores Recovered . | . . . . Used . | . . . . Hacking Detections 3 | . 3 . . Full Trace Events . | . . . . Feedback Events . | . . . . Feedback Blocked . | . . . . Robot Schematics Acquired . | . . . . Robots Built . | . . . . Authchips . | . . . . Time . | . . . . Total Robot Build Rating . | . . . . Part Schematics Acquired . | . . . . Parts Built . | . . . . Authchips . | . . . . Time . | . . . . Total Part Build Rating . | . . . . Part Studies Acquired . | . . . . Parts Repaired . | . . . . Time . | . . . . Parts Recycled . | . . . . Recycled Matter . | . . . . Retrieved Matter . | . . . . Retrieved Components . | . . . . Parts Scanalyzed . | . . . . Part Schematics Acquired . | . . . . Parts Damaged . | . . . . Bothacking | -11 -10 -10 -10 ------------ Run | Yrd Mat Min Sub Used RIF Installer . | . . . . Robots Hacked . | . . . . Non-combat . | . . . . Combat . | . . . . Robot Hacks Applied . | . . . . Relay Couplers Released . | . . . . Fabnet Peak Effective % . | . . . . Robots Rewired . | . . . . Allies Hacked . | . . . . Hacks Repelled . | . . . . Allies | -11 -10 -10 -10 -------- Run | Yrd Mat Min Sub Total Allies 2 | . . 2 . Largest Group 2 | . . 2 2 Highest-Rated Group 43 | . . 43 43 Highest-Rated Ally 31 | . . 31 31 Total Orders . | . . . . Ally Attacks 9 | . . . 9 Total Damage 266 | . . . 266 Kills 3 | . . . 3 Allies Corrupted . | . . . . Allies Melted . | . . . . Intel | -11 -10 -10 -10 ------- Run | Yrd Mat Min Sub Active Infowar (turns) 3463 | 8 695 645 2115 Structural 1221 | . . . 1221 Seismic 2242 | 8 695 645 894 Robot Analysis Total . | . . . . Derelict Logs Recovered 2 | . . . 2 Drone Launches . | . . . . Drone Recoveries . | . . . . Exploration | -11 -10 -10 -10 ------------- Run | Yrd Mat Min Sub Turns Passed 4417 | 88 695 645 2989 Spaces Moved 2367 | 55 398 322 1592 Core 1 | 1 . . . Treads 85 | . 85 . . Legs . | . . . . Wheels 2281 | 54 313 322 1592 Hover . | . . . . Flight . | . . . . Fastest Speed 50 | 50 90 150 150 Average Speed 145 | 99 130 150 150 Slowest Speed 160 | 100 160 150 150 Overloaded Moves . | . . . . Propulsion Burnouts . | . . . . Robots Hopped . | . . . . Potential Cave-ins . | . . . . Cave-ins Triggered . | . . . . Exploration Rate (%) 54 | 3 54 81 79 Regions Visited 3 Branch Regions 2 Pre-discovered Areas 1 | . . . 1 Known Exits Taken . | . . . . Unknown Exits Taken 3 | 1 1 1 . Scrap Searched 6 | . . 1 5 Spaces Dug 31 | . . . 31 Terrain Destroyed 47 | . . . 47 Melee . | . . . . Projectile 5 | . . . 5 AOE 42 | . . . 42 Terrain Rammed . | . . . . Walls Destroyed . | . . . . Machines Disabled . | . . . . Actions | -11 -10 -10 -10 --------- Run | Yrd Mat Min Sub Total 3123 | 74 507 486 2056 Wait 549 | 2 34 158 355 Move 2364 | 54 397 321 1592 Hop . | . . . . Pick Up 34 | 5 20 3 6 Fast Attach 9 | 6 . . 3 Attach 6 | 1 . . 5 Detach 1 | . . . 1 Swap 17 | . 9 . 8 Drop 21 | . 10 4 7 Fire 122 | 6 37 . 79 Melee . | . . . . Ram . | . . . . Kick . | . . . . Crush . | . . . . Escape Stasis . | . . . . Rewire . | . . . . Trap . | . . . . Miscellaneous . | . . . . Route ------- -11/Scrapyard -10/Materials (discovered 2 exits: [*Mat] / *Min) -10/Mines (discovered 3 exits: [*Mat x2] / *Sub) -10/Subcaves (discovered 3 exits: [*Mat x2] / [*Rec]) History --------- Turn | Location | Event 9 | -11/Scrapyard | Discovered new exit (range 15) 89 | -11/Scrapyard | Entered Materials 285 | -10/Materials | Discovered new exit (range 16) 315 | -10/Materials | Build established: Mutant 352 | -10/Materials | Discovered new exit (range 10) 784 | -10/Materials | Entered Mines 786 | -10/Mines | Discovered new exit (range 16) 798 | -10/Mines | Met a Derelict bent on vengeance 850 | -10/Mines | Found the Drone Emporium 862 | -10/Mines | Found Prototype Device 911 | -10/Mines | Found a hidden stash of uninstalled traps 1101 | -10/Mines | Discovered new exit (range 8) 1190 | -10/Mines | Discovered new exit (range 6) 1429 | -10/Mines | Entered Subcaves 1429 | -10/Subcaves | Accompanied by 2 allies 1430 | -10/Subcaves | Approached by a straggling Scientist 1432 | -10/Subcaves | Learned Materials emergency access door positions 1434 | -10/Subcaves | Led the pair of lost Derelicts to an unsafe place 1996 | -10/Subcaves | Discovered new exit (range 13) 2093 | -10/Subcaves | Discovered new exit (range 10) 2115 | -10/Subcaves | Shifting Twisted Machinery released Sub. Optics 2597 | -10/Subcaves | A swath of the cavern ceiling suddenly collapsed 2767 | -10/Subcaves | Ambushed by Subdweller buried in earth 2912 | -10/Subcaves | Core integrity fell below 50% 2940 | -10/Subcaves | Learned 2 Materials zone layouts 3022 | -10/Subcaves | Shifting Twisted Machinery released Sub. Monowheel 3047 | -10/Subcaves | Shifting Twisted Machinery released Lgt. Humpback 3128 | -10/Subcaves | A swath of the cavern ceiling suddenly collapsed 3332 | -10/Subcaves | Discovered new exit (range 11) 3655 | -10/Subcaves | Visited Clippyterm 3659 | -10/Subcaves | Learned location of Section 7 (-2) 3830 | -10/Subcaves | Disturbed a concealed Subdweller 3844 | -10/Subcaves | Core integrity fell below 20% 4401 | -10/Subcaves | A Subdweller sparked back to life 4418 | -10/Subcaves | Destroyed by OS-JN0(R) with Subdweller Shrapnel Launcher Last Messages --------------- 03861_ Searching scrap... 03861_ Found Enh. Flamer. 03861_ Found 42 Matter. 03862_ Acquired 30 matter. 03865_ Searching scrap... 03865_ Found Mak. Light Armor Plating. 03865_ Found 62 Matter. 03868_ Dropped Assault Rifle. 03869_ Acquired Mak. Light Armor Plating. 03871_ Acquired 10 matter. 04401_ M7-3VH(R) creaks and sparks as it begins to move. 04407_ M7-3VH(R) destroyed. 04408_ The unstable cave ceiling collapses. 04408_ 8L-QTQ(z) destroyed. 04410_ OS-JN0(R) Disposable Heat Sink blasted off. 04416_ OS-JN0(R) affixes Scrap Shield Fragment to Scrap Shield. 04418_ Battle Cannon destroyed. Map ----- +----------------------------------------------------+ | ?????????????????????????????????????????????????? | | ?????????????????????????????????????????????????? | | ?????????????????????????????????????????????????? | | ?????????????????????????????????????????????????? | | ?????????????????????????????????????????????????? | | ?????????????????????????????????????????????????? | | ?????????????????????????????????????????????????? | | ?????????????????????????????????????????????????? | | ?????????????????????????????????????????????????? | | ?????????????????????????????????????????????????? | | ????????????????????????????? ? ??????????????? | | ?????????????????????????????% ? ??????????????? | | ??????????????????????? #??#?% #?????????????? | | ??????????????????????? ## ? ##???????????? | | ??????????????????????? #?# #? ##?????????? | | ???????????????????????? %### #?# ""#?????? ??? | | ???????????????#????????# #?# " #????? ??? | | ???????????????# ????????# #?# ""##???? ???? | | ???????????????# ??????## < #?# #???"????? | | ???????????????# ##???# ### ##? ??"??# | | ???????????????# ;;#### %## "" " # | | ??????????? ##; ;; # ## #? | | ??????????? ;;;; ??# ### | | ??????????? < ; % %###&###" "# | | ?????????? ! # # &%"" "# | | ?????????? %=RR @ % % & "" "" | | ????????????< #& "## | | ????????????# # ; #### ##? | | ????????????## ## ##??# ##?? | | ?????????????####???# ;# ##???# #?## | | ????????????????????##;# ;### #??### ##?# | | ????????????????############ #?###### #?# # | | ????????????????######<#####; ???## #### | | ????????????????##"""" ""## ??# # # ## | | ????????????????## " % "### #?# #### | | ????????????????##" %% "##?" ##?## ### # # | | ????????????????## ##?###??## ## ###### | | ????????????????## ##??????# ## #????? | | ????????????????##" "##???#### ### #????? | | ????????????????##### ######### # ""##?# ##???## | | ????????????????##### *###### ## #??# ????# | | ???????????????????## "####?# ### ##? #?#### | | ???????????????????### ##### ## #? ?## | | ???????????????????### "###?# " ## ### | | ????????????????????## & !"#### ""### "?## | | ???????????????????### & #### ""### " | | ???????????????????### !"" ### "## """" " | | ???????????????????## """ ##### ## """ ##" | | ???????????????????## !* ##?## # " ## " | | ???????????????????## ##### ## | +----------------------------------------------------+ Best States ------------- Heat Dissipation 25 Energy Generation 12 Energy Capacity 265 Matter Stores 300 Matter Capacity 300 Sight Range 16 Terrain Scan Density 10 Armor Coverage 150 Evasion (%) 42 Recoil Reduction 1 Item Schematics ----------------- None Robot Schematics ------------------ None Fabricated ------------ Nothing Repaired ---------- Nothing Studied --------- None Alien Tech Used ----------------- None Achievements -------------- None Challenges ------------ None Game ------ Seed SeismicCoreThrower Manual? 0 Play Time 00:24:21 Cumulative 1459.8 hours Start 2026.04.27 @ 00:08:40 End 2026.04.27 @ 00:56:39 Sessions 1 Manual Loads 0 Difficulty Rogue Special Mode None Game No. 477 Rogue 470 Adventurer 4 Explorer 3 Win Type - Total 45 Types 21/5/2/4/1/3/4/1/2/2 Lore% 97 Gallery% 95 Achievement% 88 Wizard Run 0 Options --------- Layout 2 ASCII 0 Keyboard 0 Movement Numpad Keybinds 0 Fullscreen 2 Font 24/Smallcaps Map View 50x44 Zoom Use 0% Tactical HUD 1 Map Filters NONE Filters NONE Steam 1 RUN: ab1802bc-bb4b-48b8-bef1-ff3d058fbac8